bitfinex/quotes_SOLUSD_20250413
["timestamp","ask_amount","ask_price","bid_price","bid_amount"]
[1744571470758,16.50062678,130.56,130.52,18.64964886]
[1744571471139,16.50062678,130.56,130.52,35.08727564]
[1744571471539,7.6599,130.55,130.52,35.08727564]
[1744571471947,7.6599,130.55,130.53,16.43762678]
[1744571472340,7.6599,130.55,130.52,35.08727564]
[1744571472663,7.7225,130.56,130.54,35.08727564]
[1744571472845,7.7225,130.56,130.55,16.43762678]
[1744571473545,0.063,130.56,130.55,35.08727564]
[1744571473971,0.063,130.56,130.55,18.64964886]
[1744571475861,0.063,130.56,130.55,35.08727564]
[1744571477069,0.063,130.56,130.49,8.0065]
[1744571477277,16.50062678,130.56,130.51,16.43762678]
[1744571477746,0.063,130.56,130.51,16.43762678]
[1744571477950,7.7223,130.56,130.53,18.64964886]
[1744571479854,0.063,130.56,130.54,18.64964886]
[1744571480171,0.063,130.56,130.54,35.08727564]
[1744571480673,0.063,130.56,130.55,35.08727564]
[1744571482153,0.063,130.56,130.54,18.64964886]
[1744571482375,0.063,130.56,130.52,16.43762678]
[1744571482671,0.063,130.56,130.53,18.64964886]
[1744571482872,16.50062678,130.56,130.5,18.64964886]
[1744571483059,16.43762678,130.55,130.5,35.08727564]
[1744571483266,16.50062678,130.56,130.51,16.43762678]
[1744571483478,16.50062678,130.56,130.52,18.64964886]
[1744571484756,7.6599,130.55,130.52,16.43762678]
[1744571485072,7.6599,130.55,130.52,18.64964886]
[1744571485460,43.24722678,130.55,130.51,18.64964886]
[1744571487561,16.43762678,130.52,130.47,0.03]
[1744571487759,16.43762678,130.51,130.47,18.67964886]
[1744571487959,42.43762678,130.52,130.47,35.11727564]
[1744571488671,34.6727,130.55,130.5,16.43762678]
[1744571488979,51.11032678,130.55,130.5,16.43762678]
[1744571489179,34.6727,130.55,130.5,16.43762678]
[1744571489364,51.11032678,130.55,130.5,16.43762678]
[1744571493471,34.6727,130.55,130.5,16.43762678]
[1744571493683,15.523,130.55,130.51,35.08727564]
[1744571494379,9.2609,130.55,130.51,35.08727564]
[1744571494982,9.2609,130.55,130.52,16.43762678]
[1744571495186,7.7225,130.56,130.54,16.43762678]
[1744571495789,0.063,130.56,130.54,16.43762678]
[1744571496379,0.063,130.56,130.53,16.43762678]
[1744571497091,0.063,130.56,130.54,16.43762678]
[1744571497678,0.063,130.56,130.51,7.6618]
[1744571497995,0.063,130.56,130.53,16.43762678]
[1744571498170,0.063,130.56,130.53,18.64964886]
[1744571498486,16.43762678,130.55,130.52,0.63]
[1744571498869,16.43762678,130.55,130.5,24.29762678]
[1744571499296,16.50062678,130.56,130.51,35.08727564]
[1744571499474,0.063,130.56,130.52,16.43762678]
[1744571499892,16.50062678,130.56,130.51,35.08727564]
[1744571500384,0.063,130.56,130.52,16.43762678]
[1744571500584,0.063,130.56,130.54,16.43762678]
[1744571502768,0.063,130.56,130.55,16.43762678]
[1744571505297,0.063,130.56,130.54,35.08727564]
[1744571505883,0.063,130.56,130.53,16.43762678]
[1744571507096,7.7223,130.56,130.53,16.43762678]
[1744571507475,7.7223,130.56,130.51,26.31144886]
[1744571507678,16.43762678,130.54,130.52,13.22]
[1744571508076,16.43762678,130.55,130.52,13.22]
[1744571508280,30.68822678,130.56,130.52,13.22]
[1744571508474,30.68822678,130.56,130.51,35.08727564]
[1744571510196,16.43762678,130.54,130.49,16.43762678]
[1744571510411,16.43762678,130.54,130.47,82.63]
[1744571510412,27.6377,130.53,130.5,13.22]
[1744571510715,16.43762678,130.51,130.5,13.22]
[1744571511796,7.6628,130.5,130.47,0.03]
[1744571512000,24.10042678,130.5,130.47,0.03]
[1744571512184,24.10042678,130.5,130.47,0.66]
[1744571512698,24.10002678,130.51,130.47,0.66]
[1744571513384,16.43762678,130.5,130.47,0.66]
[1744571514510,16.43762678,130.5,130.47,0.03]
[1744571514720,24.10102678,130.5,130.47,0.03]
[1744571515618,16.43762678,130.49,130.47,0.03]
[1744571515821,24.10102678,130.5,130.47,0.03]
[1744571518225,27.6377,130.53,130.48,16.43762678]
[1744571518430,44.07532678,130.53,130.48,16.43762678]
[1744571518601,7.6616,130.52,130.48,16.43762678]
[1744571519199,51.73662678,130.53,130.49,18.64964886]
[1744571519611,9.299,130.53,130.49,35.08727564]
[1744571520626,6.5913,130.56,130.51,16.43762678]
[1744571520627,8.1377,130.56,130.51,16.43762678]
[1744571520831,16.43762678,130.55,130.51,16.43762678]
[1744571521121,24.09782678,130.55,130.5,16.43762678]
[1744571522130,7.6602,130.55,130.5,16.43762678]
[1744571522307,24.09782678,130.55,130.5,16.43762678]
[1744571522629,16.43762678,130.54,130.49,35.08727564]
[1744571523127,16.43762678,130.54,130.5,16.43762678]
[1744571523319,7.661,130.53,130.5,16.43762678]
[1744571523524,24.09862678,130.53,130.49,18.64964886]
[1744571523909,24.09862678,130.53,130.48,16.43762678]
[1744571524229,24.09862678,130.53,130.48,24.10142678]
[1744571524930,7.6607,130.54,130.5,16.43762678]
[1744571525137,7.6607,130.54,130.49,18.64964886]
[1744571525308,7.6607,130.54,130.5,16.43762678]
[1744571526037,24.09772678,130.55,130.5,24.10022678]
[1744571527330,24.09772678,130.55,130.5,16.43762678]
[1744571528224,16.43762678,130.54,130.49,16.43762678]
[1744571528719,24.09772678,130.55,130.5,16.43762678]
[1744571530119,16.43762678,130.54,130.49,7.663]
[1744571530432,16.43762678,130.53,130.48,35.08727564]
[1744571530635,16.43762678,130.52,130.48,18.64964886]
[1744571531004,7.6601,130.55,130.49,35.08727564]
[1744571531232,24.09772678,130.55,130.51,16.43762678]
[1744571531908,24.09772678,130.55,130.5,16.43762678]
[1744571532210,24.09772678,130.55,130.51,16.43762678]
[1744571533441,24.09772678,130.55,130.5,16.43762678]
[1744571536648,15.7973,130.56,130.52,16.43762678]
[1744571537243,15.7973,130.56,130.52,10.51470703]
[1744571537933,10.51470703,130.55,130.51,29.16435589]
[1744571538450,10.51470703,130.55,130.51,18.64964886]
[1744571538653,7.6604,130.54,130.51,18.64964886]
[1744571540436,18.17510703,130.54,130.5,18.64964886]
[1744571541249,7.6604,130.54,130.5,29.16435589]
[1744571541753,7.6604,130.54,130.51,10.51470703]
[1744571542860,7.6604,130.54,130.5,18.64964886]
[1744571543149,7.6604,130.54,130.5,29.16435589]
[1744571543655,29.72710703,130.56,130.51,10.51470703]
[1744571546058,37.38640703,130.56,130.51,10.51470703]
[1744571546957,37.38640703,130.56,130.5,29.16435589]
[1744571548342,10.51470703,130.55,130.5,29.16435589]
[1744571549152,10.51470703,130.55,130.49,10.51470703]
[1744571549346,10.51470703,130.54,130.49,10.51470703]
[1744571549552,12.13630703,130.53,130.48,29.16435589]
[1744571549943,7.6616,130.52,130.48,29.16435589]
[1744571553761,7.6616,130.52,130.49,10.51470703]
[1744571563474,7.6616,130.52,130.48,29.16435589]
[1744571565988,6.3947,130.54,130.5,10.51470703]
[1744571566199,7.6607,130.54,130.51,10.51470703]
[1744571567185,7.6599,130.55,130.51,10.51470703]
[1744571568284,18.17460703,130.55,130.51,10.51470703]
[1744571570181,7.6599,130.55,130.51,10.51470703]
[1744571570797,7.6599,130.55,130.52,10.51470703]
[1744571574309,9.3609,130.56,130.52,10.51470703]
[1744571575595,0.063,130.56,130.55,10.51470703]
[1744571575807,0.063,130.56,130.53,10.51470703]
[1744571575995,0.063,130.56,130.52,10.51470703]
[1744571576179,0.063,130.56,130.51,10.51470703]
[1744571576378,0.063,130.56,130.52,10.51470703]
[1744571577312,7.7223,130.56,130.52,10.51470703]
[1744571578387,0.063,130.56,130.55,10.51470703]
[1744571579690,0.063,130.56,130.55,29.16435589]
[1744571580615,0.063,130.56,130.55,36.82425589]
[1744571582603,0.063,130.56,130.55,26.30954886]
[1744571582906,0.063,130.56,130.55,36.82425589]
[1744571583708,0.063,130.56,130.54,18.17500703]
[1744571583905,0.063,130.56,130.51,91.885]
[1744571584107,10.51470703,130.54,130.49,10.51470703]
[1744571584291,10.51470703,130.54,130.5,13.22]
[1744571585191,18.17540703,130.54,130.49,36.82755589]
[1744571585397,18.17540703,130.54,130.49,18.17790703]
[1744571585607,18.17540703,130.54,130.49,36.82755589]
[1744571586311,7.7223,130.56,130.5,10.51470703]
[1744571586512,0.063,130.56,130.52,10.51470703]
[1744571586691,0.063,130.56,130.53,10.51470703]
[1744571586892,0.063,130.56,130.54,10.51470703]
[1744571587698,0.063,130.56,130.53,10.51470703]
[1744571587900,0.063,130.56,130.55,10.51470703]
[1744571588109,0.063,130.56,130.55,29.16435589]
[1744571588507,0.063,130.56,130.55,36.82425589]
[1744571589304,0.063,130.56,130.55,42.72544573]
[1744571592216,0.063,130.56,130.5,27.088]
[1744571592421,0.063,130.56,130.53,18.64964886]
[1744571593118,0.063,130.56,130.54,24.25589687]
[1744571593290,0.063,130.56,130.54,7.84]
[1744571593908,0.063,130.56,130.54,24.25589687]
[1744571594319,0.063,130.56,130.54,7.84]
[1744571596016,0.063,130.56,130.54,24.25589687]
[1744571597221,0.063,130.56,130.55,35.06554573]
[1744571598400,0.063,130.56,130.55,35.49203044]
[1744571599236,0.063,130.56,130.55,43.15193044]
[1744571604697,0.063,130.56,130.55,50.99193044]
[1744571606311,0.063,130.59,130.56,18.64964886]
[1744571606515,0.063,130.59,130.58,35.06554573]
[1744571606708,0.063,130.59,130.58,35.49203044]
[1744571608337,0.063,130.59,130.58,43.15013044]
[1744571611922,0.063,130.59,130.58,42.72364573]
[1744571612236,0.063,130.59,130.58,26.30774886]
[1744571612529,0.063,130.59,130.58,42.72364573]
[1744571613633,0.063,130.59,130.58,35.06554573]
[1744571613825,0.063,130.59,130.58,26.30774886]
[1744571614022,0.063,130.59,130.58,42.72364573]
[1744571615828,0.063,130.59,130.58,50.56364573]
[1744571616228,0.063,130.59,130.58,50.99013044]
[1744571618918,0.063,130.61,130.6,26.0]
[1744571619119,0.063,130.64,130.61,19.07613357]
[1744571619327,0.063,130.64,130.63,35.49203044]
[1744571619533,0.063,130.64,130.63,43.33203044]
[1744571619926,0.063,130.64,130.63,50.98723044]
[1744571621043,0.063,130.64,130.63,34.14484886]
[1744571621220,0.063,130.64,130.63,18.64964886]
[1744571623234,0.063,130.64,130.63,42.72074573]
[1744571624444,0.063,130.64,130.63,35.06554573]
[1744571625539,0.063,130.64,130.63,42.72074573]
[1744571625943,0.063,130.64,130.63,35.06554573]
[1744571626137,0.063,130.64,130.62,24.25589687]
[1744571626446,0.063,130.64,130.63,18.64964886]
[1744571626827,16.47889687,130.64,130.59,19.07613357]
[1744571627138,16.41589687,130.63,130.6,7.84]
[1744571627334,16.47889687,130.64,130.6,7.84]
[1744571627532,16.41589687,130.63,130.59,42.90554573]
[1744571628533,16.41589687,130.63,130.59,50.56284573]
[1744571628733,24.07109687,130.63,130.59,7.84]
[1744571629043,24.07109687,130.63,130.6,18.64964886]
[1744571630247,18.04679687,130.62,130.59,7.84]
[1744571630545,16.41589687,130.6,130.56,7.84]
[1744571630761,16.41589687,130.6,130.56,24.25589687]
[1744571631551,16.41589687,130.6,130.56,15.4992]
[1744571632055,24.07289687,130.6,130.56,31.91509687]
[1744571632427,7.6566,130.61,130.56,15.4992]
[1744571632627,24.07249687,130.61,130.56,31.91509687]
[1744571633451,16.41589687,130.61,130.56,31.91509687]
[1744571633647,6.5605,130.64,130.6,35.06554573]
[1744571633837,0.063,130.64,130.62,18.64964886]
[1744571634037,0.063,130.64,130.62,35.06554573]
[1744571634426,0.063,130.64,130.61,16.41589687]
[1744571634657,0.063,130.64,130.62,18.64964886]
[1744571639256,0.063,130.64,130.63,35.06554573]
[1744571640460,0.063,130.64,130.63,18.64964886]
[1744571640971,0.063,130.64,130.59,8.24648471]
[1744571640972,24.21959687,130.64,130.57,7.6584]
[1744571641137,16.41589687,130.61,130.56,24.07499687]
[1744571641340,16.41589687,130.6,130.57,18.64964886]
[1744571642165,16.41589687,130.61,130.57,18.64964886]
[1744571642467,24.07239687,130.61,130.57,18.64964886]
[1744571643040,24.07239687,130.61,130.57,26.30834886]
[1744571643262,7.6565,130.61,130.57,42.72424573]
[1744571643667,16.41589687,130.63,130.58,16.41589687]
[1744571643836,24.21959687,130.64,130.59,16.41589687]
[1744571644034,31.87439687,130.64,130.59,16.41589687]
[1744571644561,31.87439687,130.64,130.6,18.64964886]
[1744571646069,16.41589687,130.63,130.58,24.07369687]
[1744571646253,16.41589687,130.61,130.56,35.06554573]
[1744571647040,15.4585,130.64,130.58,16.41589687]
[1744571647267,24.07159687,130.62,130.58,18.64964886]
[1744571648973,16.41589687,130.6,130.56,18.64964886]
[1744571649671,16.41589687,130.61,130.56,35.06554573]
[1744571650575,7.6569,130.6,130.56,35.06554573]
[1744571652755,7.6569,130.6,130.56,42.72474573]
[1744571652963,7.6569,130.6,130.56,35.06554573]
[1744571654064,7.6569,130.6,130.56,42.72484573]
[1744571654377,7.6569,130.6,130.57,3.89]
[1744571655581,18.00079687,130.58,130.54,262.68]
[1744571655782,16.41589687,130.57,130.55,3.89]
[1744571655978,33.25827845,130.56,130.55,3.89]
[1744571656181,16.41589687,130.56,130.51,0.03]
[1744571656485,16.41589687,130.55,130.51,16.44589687]
[1744571656783,16.41589687,130.56,130.52,3.89]
[1744571656971,16.41589687,130.57,130.52,20.30589687]
[1744571657158,16.41589687,130.57,130.52,16.41589687]
[1744571657352,18.00079687,130.58,130.53,16.41589687]
[1744571657759,7.6587,130.57,130.53,16.41589687]
[1744571658376,42.41589687,130.54,130.51,0.03]
[1744571658580,16.41589687,130.52,130.51,13.25]
[1744571659171,16.41589687,130.52,130.51,0.03]
[1744571659761,24.07749687,130.52,130.51,0.03]
[1744571660359,15.8579,130.53,130.51,0.03]
[1744571660565,9.246,130.53,130.51,0.03]
[1744571661572,7.6605,130.54,130.51,0.03]
[1744571661777,24.07589687,130.55,130.51,0.03]
[1744571662991,14.2714,130.56,130.51,16.44589687]
[1744571663187,7.6595,130.56,130.52,16.41589687]
[1744571664079,24.07539687,130.56,130.51,0.03]
[1744571664269,16.41589687,130.55,130.51,18.67964886]
[1744571665972,24.07609687,130.55,130.51,18.67964886]
[1744571669775,7.6602,130.55,130.51,18.67964886]
[1744571669977,24.07609687,130.55,130.51,18.67964886]
[1744571670394,16.41589687,130.54,130.51,0.03]
[1744571670603,16.41589687,130.52,130.51,0.03]
[1744571670893,24.55525844,130.52,130.51,0.03]
[1744571671295,24.83958158,130.52,130.51,0.0001]
[1744571671596,24.83958158,130.52,130.5,0.03]
[1744571671597,0.42648471,130.51,130.5,0.03]
[1744571671971,16.84238158,130.51,130.5,0.03]
[1744571672502,0.42648471,130.49,130.47,0.03]
[1744571672682,16.41589687,130.48,130.47,0.03]
[1744571673799,7.664,130.48,130.47,0.03]
[1744571673980,24.07989687,130.48,130.47,0.03]
[1744571675276,40.92227845,130.48,130.46,0.03]
[1744571675484,18.07979687,130.47,130.46,0.03]
[1744571675776,24.71179687,130.47,130.46,0.03]
[1744571676799,25.13828158,130.47,130.46,0.03]
[1744571677213,32.80278158,130.47,130.45,0.03]
[1744571677392,16.41589687,130.46,130.45,0.03]
[1744571678400,24.08099687,130.46,130.45,0.03]
[1744571679295,8.09158471,130.46,130.43,0.03]
[1744571679518,16.41589687,130.45,130.43,0.03]
[1744571680502,24.08159687,130.45,130.43,0.03]
[1744571681102,7.80786157,130.45,130.43,0.03]
[1744571681403,7.6653,130.46,130.43,0.03]
[1744571682982,24.08119687,130.46,130.43,0.03]
[1744571683609,16.41589687,130.47,130.43,18.67964886]
[1744571683786,16.41589687,130.48,130.43,35.09554573]
[1744571684689,16.41589687,130.48,130.43,42.76214573]
[1744571684690,24.07999687,130.48,130.43,42.76214573]
[1744571685095,24.07999687,130.48,130.43,35.09554573]
[1744571685297,24.07999687,130.48,130.43,42.76224573]
[1744571686227,24.07999687,130.48,130.43,26.34634886]
[1744571686417,16.41589687,130.48,130.43,42.76224573]
[1744571687987,7.663,130.5,130.44,16.44589687]
[1744571688305,24.07749687,130.52,130.47,35.06554573]
[1744571688502,7.6616,130.52,130.47,35.06554573]
[1744571688708,24.07749687,130.52,130.47,35.06554573]
[1744571689304,24.07749687,130.52,130.45,18.64964886]
[1744571689499,24.07749687,130.52,130.47,18.64964886]
[1744571689693,7.6616,130.52,130.48,16.41589687]
[1744571690711,24.07749687,130.52,130.47,35.06554573]
[1744571690911,16.41589687,130.51,130.47,18.64964886]
[1744571691493,24.07749687,130.52,130.47,42.73004573]
[1744571691708,1.5142,130.54,130.48,16.41589687]
[1744571691899,16.41589687,130.53,130.48,16.41589687]
[1744571692213,27.2585,130.57,130.47,27.93444886]
[1744571692214,24.07659687,130.54,130.49,35.06554573]
[1744571692392,24.07659687,130.54,130.47,27.93444886]
[1744571692594,24.07659687,130.54,130.49,16.41589687]
[1744571692793,16.41589687,130.54,130.49,16.41589687]
[1744571693000,7.6595,130.56,130.5,24.07869687]
[1744571693202,24.07539687,130.56,130.51,16.41589687]
[1744571693394,24.13769687,130.57,130.52,16.41589687]
[1744571693817,0.063,130.57,130.55,16.41589687]
[1744571694410,0.063,130.57,130.54,35.06554573]
[1744571695614,0.063,130.57,130.55,16.41589687]
[1744571696200,0.063,130.57,130.56,35.06554573]
[1744571697310,0.063,130.57,130.56,42.72484573]
[1744571697517,0.063,130.57,130.56,35.06554573]
[1744571699924,0.063,130.57,130.55,18.64964886]
[1744571700109,16.47889687,130.57,130.53,18.64964886]
[1744571700825,16.47889687,130.57,130.51,24.23589687]
[1744571700826,16.41589687,130.56,130.51,24.23589687]
[1744571701021,16.41589687,130.54,130.49,24.07909687]
[1744571701219,16.41589687,130.54,130.5,13.22]
[1744571701421,16.41589687,130.52,130.48,7.8]
[1744571701603,16.41589687,130.51,130.48,7.8]
[1744571701799,16.41589687,130.5,130.44,15.5201]
[1744571701999,16.41589687,130.48,130.44,7.83]
[1744571702217,16.41589687,130.47,130.46,13.22]
[1744571702419,16.41589687,130.48,130.46,13.22]
[1744571702610,16.41589687,130.49,130.46,13.22]
[1744571702805,16.41589687,130.5,130.46,13.22]
[1744571703119,26.3106116,130.5,130.45,26.3106116]
[1744571703309,26.3106116,130.48,130.44,7.83]
[1744571703504,26.3106116,130.48,130.44,26.47964886]
[1744571703928,26.3106116,130.48,130.44,7.83]
[1744571704923,26.3106116,130.47,130.44,0.03]
[1744571705315,33.9751116,130.48,130.44,0.03]
[1744571705508,26.3106116,130.47,130.44,0.03]
[1744571707030,26.3106116,130.45,130.44,0.03]
[1744571707326,33.9763116,130.45,130.44,0.03]
[1744571708722,34.40279631,130.45,130.44,0.03]
[1744571709308,9.68318471,130.44,130.43,0.03]
[1744571709506,35.99379631,130.44,130.43,0.0001]
[1744571709719,7.06728471,130.43,130.42,0.0001]
[1744571709910,26.42648471,130.4,130.39,0.03]
[1744571710103,79.04770791,130.4,130.39,0.03]
[1744571710442,52.73709631,130.4,130.39,0.03]
[1744571710727,26.0,130.4,130.39,0.03]
[1744571710914,52.3106116,130.4,130.39,0.03]
[1744571711602,26.0,130.4,130.39,0.03]
[1744571711826,59.9793116,130.4,130.39,0.03]
[1744571712528,33.9793116,130.4,130.39,0.03]
[1744571713018,26.3106116,130.42,130.39,0.03]
[1744571713221,26.3106116,130.45,130.4,26.3106116]
[1744571713422,26.3106116,130.48,130.43,26.3106116]
[1744571713624,26.3106116,130.48,130.4,18.64964886]
[1744571713625,7.6622,130.51,130.45,26.3106116]
[1744571713825,26.3106116,130.52,130.48,26.3106116]
[1744571714031,26.3106116,130.53,130.48,26.3106116]
[1744571714537,33.9720116,130.53,130.48,26.3106116]
[1744571714916,0.063,130.54,130.45,18.64964886]
[1744571714917,34.0342116,130.54,130.49,33.9739116]
[1744571715134,0.063,130.54,130.52,26.3106116]
[1744571715431,0.063,130.54,130.53,26.3106116]
[1744571715635,0.063,130.54,130.52,26.3106116]
[1744571716320,0.063,130.54,130.53,26.3106116]
[1744571716632,0.063,130.54,130.53,34.1106116]
[1744571716816,26.3736116,130.54,130.5,26.3106116]
[1744571717009,26.3106116,130.53,130.49,7.8]
[1744571717209,0.063,130.54,130.51,26.3106116]
[1744571717416,0.063,130.54,130.53,26.3106116]
[1744571717810,0.063,130.54,130.53,44.96026046]
[1744571718013,0.063,130.54,130.53,45.10242203]
[1744571718531,0.063,130.54,130.53,45.38674517]
[1744571718919,0.063,130.54,130.53,45.10242203]
[1744571720126,0.063,130.54,130.53,44.96026046]
[1744571720326,0.063,130.54,130.53,18.64964886]
[1744571720639,0.063,130.54,130.52,44.96026046]
[1744571720822,0.063,130.54,130.53,26.3106116]
[1744571721420,0.063,130.54,130.53,44.96026046]
[1744571721621,0.063,130.54,130.53,45.10242203]
[1744571722217,0.063,130.54,130.53,44.96026046]
[1744571722425,0.063,130.54,130.53,26.3106116]
[1744571723028,0.063,130.54,130.53,33.9716116]
[1744571723345,0.063,130.54,130.53,52.62126046]
[1744571724729,0.063,130.54,130.53,52.76342203]
[1744571727043,0.063,130.54,130.53,52.62126046]
[1744571727240,0.063,130.54,130.52,18.64964886]
[1744571727442,0.063,130.54,130.51,26.3106116]
[1744571727947,0.063,130.54,130.53,26.3106116]
[1744571728246,0.063,130.54,130.52,26.3106116]
[1744571728629,26.3106116,130.53,130.45,6.2772]
[1744571728844,26.3106116,130.51,130.46,29.9206116]
[1744571729034,26.3106116,130.53,130.48,26.3106116]
[1744571729224,26.3106116,130.53,130.48,44.96026046]
[1744571729423,0.063,130.54,130.52,26.3106116]
[1744571729831,0.063,130.54,130.53,26.3106116]
[1744571730433,0.063,130.54,130.52,26.3106116]
[1744571730947,7.7236,130.54,130.5,26.3106116]
[1744571733348,0.063,130.54,130.52,26.3106116]
[1744571733553,0.063,130.54,130.51,26.3106116]
[1744571735147,0.063,130.54,130.49,7.6632]
[1744571735354,0.063,130.54,130.5,26.3106116]
[1744571737357,0.063,130.54,130.49,7.663]
[1744571737653,0.063,130.54,130.5,26.3106116]
[1744571737851,26.3736116,130.54,130.49,26.3106116]
[1744571738230,0.063,130.54,130.49,26.3106116]
[1744571738430,26.3736116,130.54,130.49,26.3106116]
[1744571738751,0.063,130.54,130.49,26.3106116]
[1744571738955,26.3736116,130.54,130.49,26.3106116]
[1744571739155,0.063,130.54,130.5,26.3106116]
[1744571739535,0.063,130.54,130.53,26.3106116]
[1744571739942,0.063,130.54,130.53,44.96026046]
[1744571740142,0.063,130.54,130.53,52.76026046]
[1744571740845,0.063,130.54,130.53,52.90242203]
[1744571741456,0.063,130.54,130.53,70.34342203]
[1744571744660,0.063,130.54,130.53,70.62774517]
[1744571744962,0.063,130.57,130.54,18.79181043]
[1744571745260,0.063,130.57,130.56,44.96026046]
[1744571746047,0.063,130.57,130.56,54.74026046]
[1744571746245,0.063,130.57,130.56,62.39956046]
[1744571746541,0.063,130.57,130.56,62.54172203]
[1744571746752,0.063,130.58,130.57,18.933972]
[1744571746948,0.063,130.6,130.59,45.07613357]
[1744571747264,0.063,130.62,130.61,0.14216157]
[1744571747559,0.063,130.62,130.61,54.88242203]
[1744571748352,0.063,130.62,130.61,62.53872203]
[1744571749867,0.063,130.62,130.61,9.78]
[1744571752071,0.063,130.62,130.61,54.74026046]
[1744571754346,0.063,130.62,130.61,9.78]
[1744571757567,0.063,130.62,130.61,36.0906116]
[1744571758159,0.063,130.62,130.61,9.78]
[1744571759051,0.063,130.62,130.6,44.96026046]
[1744571759248,0.063,130.62,130.59,7.8]
[1744571759552,26.0,130.61,130.6,0.19]
[1744571759751,26.42648471,130.61,130.6,0.19]
[1744571759956,7.95382314,130.6,130.54,7.81]
[1744571760146,7.95382314,130.6,130.54,0.03]
[1744571760351,26.0,130.57,130.55,0.19]
[1744571760760,26.0,130.57,130.54,0.03]
[1744571760761,42.40678167,130.57,130.54,0.03]
[1744571761170,52.28296155,130.57,130.54,0.03]
[1744571761374,7.6593,130.56,130.54,0.03]
[1744571763350,7.6588,130.57,130.54,0.03]
[1744571763561,7.6695,130.6,130.54,0.03]
[1744571763562,26.28296155,130.58,130.54,0.03]
[1744571764758,19.56858471,130.61,130.56,26.28296155]
[1744571764759,7.6563,130.61,130.56,26.28296155]
[1744571764985,7.6563,130.61,130.57,26.28296155]
[1744571765878,26.28296155,130.6,130.55,7.78]
[1744571766080,26.28296155,130.59,130.55,7.78]
[1744571767784,33.94076155,130.59,130.55,7.78]
[1744571768268,33.94076155,130.59,130.55,15.4398]
[1744571768473,33.94006155,130.6,130.55,41.72276155]
[1744571768894,33.94006155,130.6,130.55,15.4398]
[1744571769200,0.063,130.62,130.58,26.28296155]
[1744571769488,0.063,130.62,130.61,26.28296155]
[1744571769691,0.063,130.62,130.61,44.93261041]
[1744571769979,0.063,130.62,130.61,53.01539512]
[1744571770163,0.063,130.62,130.61,59.22969512]
[1744571770365,0.063,130.62,130.61,67.00969512]
[1744571772866,0.063,130.64,130.63,0.14216157]
[1744571773065,0.063,130.64,130.63,45.07477198]
[1744571773774,0.063,130.64,130.63,65.75997198]
[1744571774468,0.063,130.64,130.63,66.04429512]
[1744571776868,0.063,130.64,130.63,65.75997198]
[1744571777195,0.063,130.64,130.63,66.04429512]
[1744571777896,0.063,130.66,130.63,66.04429512]
[1744571777897,0.063,130.67,130.64,20.569172]
[1744571778075,0.063,130.7,130.69,44.79181043]
[1744571778263,0.063,130.7,130.69,78.85477198]
[1744571778668,0.063,130.7,130.69,86.50637198]
[1744571779198,0.063,130.7,130.69,86.79069512]
[1744571779504,0.063,130.76,130.72,44.933972]
[1744571779665,0.063,130.76,130.72,70.93261041]
[1744571779873,0.063,130.76,130.72,44.93261041]
[1744571780284,0.063,130.76,130.72,71.64205667]
[1744571780495,0.063,130.76,130.72,45.07477198]
[1744571780806,0.063,130.76,130.72,52.72467198]
[1744571780968,0.063,130.76,130.72,79.29195667]
[1744571782200,0.063,130.76,130.72,53.00899512]
[1744571782972,0.063,130.76,130.72,79.29195667]
[1744571783373,0.063,130.76,130.74,0.14216157]
[1744571783601,0.063,130.76,130.75,52.85477198]
[1744571783791,0.063,130.76,130.75,26.57181043]
[1744571783973,0.063,130.76,130.75,52.85477198]
[1744571784173,0.063,130.76,130.75,53.13909512]
[1744571785079,0.063,130.76,130.75,52.85477198]
[1744571785275,0.063,130.76,130.75,60.50287198]
[1744571786276,0.063,130.76,130.75,26.42964886]
[1744571786583,0.063,130.76,130.72,82.74216157]
[1744571786584,0.063,130.76,130.73,26.28296155]
[1744571788202,26.28296155,130.75,130.71,7.78]